bitfinex/quotes_ETHUSD_20240701
["timestamp","ask_amount","ask_price","bid_price","bid_amount"]
[1719873994047,4.5017,3440.9,3440.7,0.737]
[1719873994241,4.5017,3440.9,3440.7,3.64332]
[1719873996663,4.5017,3440.9,3440.7,0.737]
[1719873996864,4.5017,3440.9,3440.5,2.90649]
[1719873996865,0.50308322,3440.8,3440.5,3.64349]
[1719873997065,4.5017,3440.9,3440.5,2.90649]
[1719873997279,0.50308828,3440.8,3440.5,3.64349]
[1719873997480,4.5017,3440.9,3440.5,3.64349]
[1719873997774,0.50308451,3440.8,3440.5,3.64349]
[1719873997978,4.5017,3440.9,3440.5,3.64349]
[1719873998145,0.50308369,3440.8,3440.5,3.64349]
[1719873998341,4.5017,3440.9,3440.5,3.64349]
[1719873998558,0.50308455,3440.8,3440.5,3.64349]
[1719873998755,4.5017,3440.9,3440.5,3.64349]
[1719873998979,0.50308385,3440.8,3440.5,3.64349]
[1719873999169,4.5017,3440.9,3440.5,3.64349]
[1719873999401,0.50308389,3440.8,3440.5,3.64349]
[1719873999594,4.5017,3440.9,3440.5,3.64349]
[1719873999865,0.50308385,3440.8,3440.5,3.64349]
[1719874000069,4.5017,3440.9,3440.5,3.64349]
[1719874000269,0.5030838,3440.8,3440.5,3.64349]
[1719874000501,4.5017,3440.9,3440.5,3.64349]
[1719874000805,0.98204469,3440.8,3440.5,3.64349]
[1719874001004,4.5017,3440.9,3440.4,3.64362]
[1719874001211,0.98205603,3440.8,3440.5,3.0]
[1719874001504,4.5017,3440.9,3440.5,3.0]
[1719874001714,0.9820489,3440.8,3440.5,3.0]
[1719874001897,4.5017,3440.9,3440.5,5.90654]
[1719874002098,0.98204714,3440.8,3440.5,5.90654]
[1719874002405,4.5017,3440.9,3440.6,0.737]
[1719874002602,0.98203406,3440.8,3440.6,0.737]
[1719874002797,4.5017,3440.9,3440.6,0.737]
[1719874002990,0.98203627,3440.8,3440.6,0.737]
[1719874003196,4.5017,3440.9,3440.6,0.737]
[1719874003396,0.98203217,3440.8,3440.6,3.64346]
[1719874003605,4.5017,3440.9,3440.6,3.64346]
[1719874003811,0.98201922,3440.8,3440.6,3.64346]
[1719874004105,4.5017,3440.9,3440.6,3.64346]
[1719874004308,0.9820339,3440.8,3440.6,3.64346]
[1719874004497,4.5017,3440.9,3440.6,3.64346]
[1719874004697,0.98203113,3440.8,3440.6,3.64346]
[1719874005029,4.5017,3440.9,3440.6,3.64346]
[1719874005175,0.98205144,3440.8,3440.7,2.90638]
[1719874005370,0.4789765,3440.8,3440.7,3.861372]
[1719874005601,4.8408,3441.2,3440.8,2.90627]
[1719874005813,0.98183446,3441.1,3440.9,0.737]
[1719874005984,0.98183446,3441.0,3440.9,3.64321]
[1719874006183,0.98183446,3441.0,3440.9,7.659878]
[1719874006716,0.47878177,3441.0,3440.9,7.659878]
[1719874007036,4.4772,3441.2,3440.8,2.90627]
[1719874007233,4.4772,3441.2,3439.5,0.2857582]
[1719874007234,4.4772,3440.9,3440.3,2.90668]
[1719874007377,0.98292502,3440.8,3440.4,2.90657]
[1719874007576,0.98292502,3440.7,3440.4,2.90657]
[1719874007812,0.98292502,3440.6,3440.4,2.90657]
[1719874008013,4.4772,3440.9,3440.4,2.90657]
[1719874008178,0.98278895,3440.8,3440.4,2.90657]
[1719874008518,0.98278895,3440.7,3440.4,2.90657]
[1719874008813,0.98278932,3440.6,3440.4,2.90657]
[1719874009007,4.4772,3440.9,3440.4,2.90657]
[1719874009184,0.98243972,3440.8,3440.4,2.90657]
[1719874009400,0.98243972,3440.7,3440.4,2.90657]
[1719874009609,0.98243972,3440.6,3440.4,2.90657]
[1719874009811,4.4772,3440.9,3440.4,2.90657]
[1719874009812,0.47934003,3440.5,3440.4,2.90657]
[1719874010304,0.47934003,3440.8,3440.4,2.90657]
[1719874010502,0.98244287,3440.7,3440.5,3.64354]
[1719874010692,0.98244287,3440.6,3440.5,4.298562]
[1719874010889,0.47934003,3440.6,3440.5,3.64354]
[1719874011101,4.4772,3440.9,3440.7,2.90638]
[1719874011303,0.98257513,3440.8,3440.7,2.90638]
[1719874014400,0.47948788,3440.8,3440.7,2.90638]
[1719874014606,0.50307424,3440.8,3440.7,2.90638]
[1719874014802,0.98256212,3440.8,3440.7,2.90638]
[1719874015037,1.05051307,3440.8,3440.7,2.90638]
[1719874016629,1.05051307,3440.8,3440.7,3.64338]
[1719874017944,1.0505113,3440.8,3440.7,3.64338]
[1719874019303,1.0505113,3440.8,3440.7,6.54976]
[1719874019737,1.0505113,3440.8,3440.7,11.885036]
[1719874019941,0.57102342,3440.8,3440.7,12.435036]
[1719874020240,0.06795095,3440.8,3440.7,12.435036]
[1719874022627,0.06795095,3440.8,3440.7,15.341416]
[1719874027233,0.06705634,3440.8,3440.7,15.341416]
[1719874029219,7.48,3441.4,3441.3,5.81174]
[1719874029424,7.48,3441.4,3441.3,7.979914]
[1719874029425,0.48086392,3441.4,3441.3,7.979914]
[1719874029619,0.48082971,3441.9,3441.7,2.90553]
[1719874029950,2.04787454,3441.8,3441.7,2.90553]
[1719874030126,3.0316746,3441.8,3441.7,2.90553]
[1719874030555,3.0316746,3441.8,3441.5,2.90568]
[1719874030736,7.9347746,3441.7,3441.5,2.90568]
[1719874030935,3.03165374,3441.6,3441.5,2.90568]
[1719874032031,3.03165374,3441.6,3441.3,3.64281]
[1719874032227,0.98379925,3441.5,3441.3,2.90581]
[1719874032429,0.48082971,3441.4,3441.2,2.90595]
[1719874032630,4.9031,3441.7,3441.2,2.90595]
[1719874032631,0.48082971,3441.3,3441.2,2.90595]
[1719874033132,0.48082971,3441.6,3441.2,2.90595]
[1719874033462,0.48093603,3441.5,3441.2,2.90595]
[1719874033627,0.48093603,3441.4,3441.2,2.90595]
[1719874033958,4.9031,3441.7,3441.2,2.90595]
[1719874034157,3.03161432,3441.6,3441.2,2.90595]
[1719874034361,0.48091508,3441.5,3441.2,2.90595]
[1719874034538,0.48091508,3441.4,3441.2,2.90595]
[1719874034723,4.9031,3441.7,3441.2,2.90595]
[1719874034928,3.03159491,3441.6,3441.2,2.90595]
[1719874035148,0.48089872,3441.5,3441.2,2.90595]
[1719874035328,0.48089872,3441.4,3441.2,2.90595]
[1719874035529,4.9031,3441.7,3441.2,2.90595]
[1719874035728,3.03156963,3441.6,3441.2,2.90595]
[1719874035950,4.9031,3441.7,3441.2,2.90595]
[1719874035951,0.48090032,3441.5,3441.2,2.90595]
[1719874036256,0.48090032,3441.4,3441.3,0.737]
[1719874036825,4.9031,3441.7,3441.4,2.90576]
[1719874037157,0.98386713,3441.6,3441.4,2.90576]
[1719874037379,0.48089717,3441.5,3441.4,2.90576]
[1719874037671,0.48089717,3441.6,3441.4,2.90576]
[1719874038376,4.9031,3441.7,3441.4,2.90576]
[1719874038534,0.48093522,3441.6,3441.4,2.90576]
[1719874038735,0.48093522,3441.5,3441.4,2.90576]
[1719874039237,0.48093522,3441.8,3441.4,2.90576]
[1719874039430,3.03159563,3441.7,3441.4,2.90576]
[1719874039627,0.48093522,3441.6,3441.5,3.6427]
[1719874040635,0.48093522,3441.9,3441.5,3.6427]
[1719874040962,4.6668,3441.7,3441.3,2.90582]
[1719874041134,0.98390847,3441.6,3441.3,3.64282]
[1719874041338,0.98392801,3441.5,3441.1,2.90601]
[1719874041648,0.48093522,3441.4,3441.0,2.90612]
[1719874041849,0.48093522,3441.4,3440.9,2.90618]
[1719874041850,0.50299441,3441.6,3441.3,3.64287]
[1719874042055,0.50299441,3441.8,3441.5,3.6427]
[1719874042249,0.98404284,3441.7,3441.5,3.6427]
[1719874042456,7.48,3441.9,3441.4,3.64278]
[1719874042653,0.98401858,3441.8,3441.4,3.64278]
[1719874042834,0.4810711,3441.7,3441.4,3.64278]
[1719874043028,1.26278711,3441.7,3441.4,0.737]
[1719874043267,4.6668,3441.4,3440.5,2.90652]
[1719874043459,4.6668,3441.1,3440.3,2.90669]
[1719874043635,3.03099412,3441.0,3440.3,2.90669]
[1719874043972,3.03103391,3440.9,3440.4,0.737]
[1719874044134,0.98402941,3440.8,3440.4,0.737]
[1719874044333,0.48093366,3440.7,3440.4,0.737]
[1719874044538,7.5729,3441.1,3440.4,0.737]
[1719874044784,3.03057612,3441.0,3440.4,0.737]
[1719874044965,3.03057612,3440.9,3440.4,0.737]
[1719874045151,0.98359909,3440.8,3440.4,0.737]
[1719874045353,0.98359909,3440.7,3440.4,0.737]
[1719874045555,2.90613,3441.0,3440.4,0.737]
[1719874045754,3.0301968,3440.9,3440.4,0.737]
[1719874045953,0.98319865,3440.8,3440.4,0.737]
[1719874046149,0.98319865,3440.7,3440.4,0.737]
[1719874046390,2.90613,3441.0,3440.4,0.737]
[1719874046542,3.03015868,3440.9,3440.4,0.737]
[1719874046744,0.98317443,3440.8,3440.4,0.737]
[1719874046942,0.48006763,3440.7,3440.4,0.737]
[1719874047145,0.48006763,3440.7,3440.6,0.737]
[1719874047687,0.48006763,3440.9,3440.6,0.737]
[1719874047874,0.50310111,3440.8,3440.6,0.737]
[1719874048186,0.48006763,3440.7,3440.6,0.737]
[1719874048383,0.48006763,3440.9,3440.6,0.737]
[1719874048566,0.98317009,3440.8,3440.6,0.737]
[1719874048754,0.48006763,3440.7,3440.6,0.737]
[1719874049251,0.48006763,3440.9,3440.6,0.737]
[1719874049572,0.9831666,3440.8,3440.6,0.737]
[1719874049770,0.48006763,3440.7,3440.6,0.737]
[1719874050138,0.48006763,3440.9,3440.6,0.737]
[1719874050343,0.98316456,3440.8,3440.6,0.737]
[1719874050545,0.48006763,3440.7,3440.6,0.737]
[1719874050739,0.48006763,3440.9,3440.6,0.737]
[1719874050942,0.98316643,3440.8,3440.6,0.737]
[1719874051153,0.48006763,3440.7,3440.6,0.737]
[1719874051854,0.48006763,3440.9,3440.6,0.737]
[1719874052054,0.98316638,3440.8,3440.6,0.737]
[1719874052371,2.48605168,3441.5,3440.6,3.64346]
[1719874052372,2.90588,3441.3,3440.6,3.64346]
[1719874052571,3.03031151,3441.2,3440.9,0.737]
[1719874052749,0.983167,3441.1,3440.9,0.737]
[1719874053074,0.983167,3441.0,3440.9,0.737]
[1719874053273,0.98316026,3441.0,3440.9,0.737]
[1719874055857,0.4800961,3441.0,3440.9,0.737]
[1719874056059,0.4800961,3441.4,3440.9,0.737]
[1719874056259,3.0304332,3441.3,3440.9,0.737]
[1719874056587,0.98314397,3441.2,3440.9,0.737]
[1719874056762,0.4800961,3441.1,3440.9,0.737]
[1719874056975,0.4800961,3441.0,3440.9,0.737]
[1719874057789,0.4800961,3441.4,3440.9,0.737]
[1719874058085,2.55036021,3441.3,3440.9,0.737]
[1719874058284,3.03045631,3441.2,3440.9,0.737]
[1719874058467,0.98314874,3441.1,3440.9,0.737]
[1719874058665,0.4800961,3441.0,3440.9,0.737]
[1719874059171,0.4800961,3441.4,3440.9,0.737]
[1719874059395,3.0304718,3441.3,3440.9,0.737]
[1719874059601,2.52742334,3441.2,3440.9,0.737]
[1719874059771,0.98314555,3441.1,3440.9,0.737]
[1719874059975,0.4800961,3441.0,3440.9,0.737]
[1719874060198,0.4800961,3441.4,3440.9,3.64321]
[1719874060384,3.03095559,3441.3,3441.1,0.737]
[1719874060587,0.4805589,3441.2,3441.1,0.737]
[1719874060787,4.6322,3441.8,3441.2,2.90591]
[1719874061118,3.03126946,3441.7,3441.2,2.90591]
[1719874061309,3.03126946,3441.6,3441.2,2.90591]
[1719874061484,3.03126946,3441.5,3441.2,2.90591]
[1719874061684,3.03126946,3441.4,3441.1,1.287]
[1719874061895,0.98370374,3441.3,3441.2,2.90596]
[1719874062105,0.48070378,3441.3,3441.2,2.90596]
[1719874062411,0.9837229,3441.7,3441.2,2.90596]
[1719874062591,3.03123362,3441.6,3441.2,2.90596]
[1719874062782,3.03123362,3441.5,3441.2,2.90596]
[1719874062981,0.98372275,3441.4,3441.2,2.90596]
[1719874063194,0.98372275,3441.3,3441.2,2.90596]
[1719874063502,0.98372283,3441.3,3441.2,2.90596]
[1719874063884,0.48070378,3441.3,3441.2,2.90596]
[1719874064097,0.50301347,3441.3,3441.0,2.90606]
[1719874064310,0.48070378,3441.2,3441.0,2.90606]
[1719874064491,7.53765,3441.8,3441.0,2.90606]
[1719874064693,2.90564,3441.6,3441.0,2.90606]
[1719874064882,3.03124046,3441.5,3441.0,2.90606]
[1719874065079,3.03124046,3441.4,3441.1,0.737]
[1719874065279,0.98377088,3441.3,3441.1,0.737]
[1719874065479,0.48074755,3441.2,3441.1,0.737]
[1719874065679,0.48080422,3441.7,3441.2,2.90595]
[1719874065902,2.55058876,3441.6,3441.2,2.90595]
[1719874066106,4.57595886,3441.5,3441.2,2.90595]
[1719874066311,0.98381754,3441.4,3441.2,2.90595]
[1719874066548,2.04757732,3441.5,3441.2,2.90595]
[1719874066549,0.48080422,3441.3,3441.2,2.90595]
[1719874066824,2.04757732,3441.5,3441.4,2.90579]
[1719874067058,2.04757732,3441.5,3441.4,3.64279]
[1719874067059,2.5283972,3441.5,3441.4,3.64279]
[1719874067187,2.5283972,3441.5,3441.4,4.19279]
[1719874067591,2.04757732,3441.5,3441.4,7.09858]
[1719874067841,2.04757732,3441.5,3441.4,8.38074052]
[1719874072631,12.3232897,3442.2,3441.7,2.90546]
[1719874072831,3.04137717,3442.1,3441.7,2.90546]
[1719874073150,3.04137717,3442.0,3441.7,2.90546]
[1719874073346,3.04137717,3441.9,3441.7,2.90546]
[1719874073652,0.99352318,3441.8,3441.7,2.90546]
[1719874073849,0.99352318,3441.8,3441.7,3.74348705]
[1719874074646,0.99352725,3441.8,3441.7,3.74348705]
[1719874075393,0.49058379,3441.8,3441.7,3.74348705]
[1719874075682,0.49058379,3442.1,3441.8,2.90545]
[1719874075893,0.49058379,3442.1,3441.7,0.83802705]
[1719874075894,0.49073309,3442.1,3441.7,0.83802705]
[1719874076098,0.49073309,3442.1,3441.9,4.86680787]
[1719874076242,0.1188897,3442.2,3442.1,2.9052]
[1719874076700,0.1188897,3442.2,3442.1,3.4552]
[1719874081392,0.1188897,3442.2,3441.6,2.90557]
[1719874081393,0.1188897,3442.2,3441.3,8.90585]
[1719874081557,0.49356377,3442.1,3441.4,7.18795052]
[1719874081763,0.50290893,3442.0,3441.3,2.90587]
[1719874081972,5.30087765,3441.9,3441.3,2.90587]
[1719874082172,4.8074,3441.9,3441.3,2.90587]
[1719874082494,4.8074,3441.9,3441.3,3.64287]
[1719874083486,4.8074,3441.9,3441.4,2.90578]
[1719874084403,4.9262897,3442.2,3441.4,4.318562]
[1719874084599,0.99607739,3442.1,3441.6,2.90555]
[1719874084899,0.49315379,3442.0,3441.7,2.90552]
[1719874085121,4.9262897,3442.2,3441.7,2.90552]
[1719874085326,0.99610477,3442.1,3441.7,2.90552]
[1719874085485,0.49318346,3442.0,3441.7,2.90552]
[1719874085870,4.9262897,3442.2,3441.7,3.64252]
[1719874086184,0.50290716,3442.1,3441.7,3.64252]
[1719874086402,0.1188897,3442.2,3441.7,3.64252]
[1719874086719,0.1188897,3442.2,3441.9,2.90535]
[1719874087404,0.1188897,3442.2,3442.1,3.6422]
[1719874087775,0.1188897,3442.2,3442.1,2.9052]
[1719874088409,0.1188897,3442.2,3442.1,3.6422]
[1719874090223,0.1188897,3442.2,3442.1,6.5474]
[1719874090519,0.1188897,3442.2,3442.1,7.0974]
[1719874090724,0.1188897,3442.2,3442.1,8.1726187]
[1719874096748,0.1188897,3442.2,3442.1,11.0778187]
[1719874100556,7.48,3443.1,3443.0,2.90444]
[1719874100765,0.50274843,3443.1,3443.0,3.64144]
[1719874100977,7.48,3443.7,3443.4,2.9041]
[1719874100978,12.0557,3443.7,3443.4,2.9041]
[1719874101142,0.99750147,3443.6,3443.4,2.9041]
[1719874101481,0.50271891,3443.5,3443.4,2.9041]
[1719874101688,0.50272147,3443.5,3443.4,2.9041]
[1719874101836,0.50272195,3443.5,3443.4,2.9041]
[1719874103471,0.50272246,3443.5,3443.4,2.9041]
[1719874103991,0.50272246,3443.5,3443.4,7.126037]
[1719874104146,12.9995,3444.4,3443.7,2.90381]
[1719874104347,3.04796147,3444.3,3443.7,2.90381]
[1719874104562,3.04796147,3444.2,3443.7,2.90381]
[1719874104903,4.7825,3444.0,3443.5,2.90402]
[1719874105065,0.99799588,3443.9,3443.5,2.90402]
[1719874105266,0.50267957,3443.8,3443.5,2.90402]
[1719874105497,0.50267957,3443.9,3443.5,2.90402]
[1719874105698,0.50268733,3443.8,3443.5,2.90402]
[1719874106014,0.50268733,3443.8,3443.3,3.64118]
[1719874106015,5.42505211,3444.0,3443.3,2.90418]
[1719874106179,5.42505211,3444.0,3442.8,2.90452]
[1719874106180,4.7825,3443.6,3442.8,2.90452]
[1719874106360,0.50270005,3443.5,3442.8,2.90452]
[1719874106561,0.737,3443.2,3442.4,2.90493]
[1719874106863,0.737,3443.0,3442.2,2.9051]
[1719874107176,0.9975203,3442.9,3442.3,2.90503]
[1719874107405,0.50278469,3442.8,3442.3,2.90503]
[1719874107711,0.737,3443.0,3442.3,2.90503]
[1719874107908,0.99708528,3442.9,3442.3,2.90503]
[1719874108112,0.50282998,3442.9,3442.5,2.90483]
[1719874108402,4.8171,3443.1,3442.5,2.90483]
[1719874108585,0.99720869,3443.0,3442.3,2.90503]
[1719874108790,0.50282353,3442.9,3442.4,0.55]
[1719874108989,5.66189508,3443.1,3442.4,0.55]
[1719874109305,0.9972156,3443.0,3442.4,0.55]
[1719874109512,0.50282343,3442.9,3442.4,0.55]
[1719874109813,5.66189508,3443.1,3442.5,2.90485]
[1719874110014,1.63972026,3443.0,3442.1,2.90518]
[1719874110220,0.99716815,3442.9,3442.1,2.90518]
[1719874110514,5.83256815,3442.8,3442.1,2.90518]
[1719874110683,0.99716815,3442.7,3442.1,2.90518]
[1719874110877,7.74001,3442.8,3442.1,2.90518]
[1719874111204,0.99704259,3442.7,3442.1,2.90518]
[1719874111414,8.15436801,3442.8,3442.1,2.90518]
[1719874111624,0.99704169,3442.7,3441.9,2.90535]
[1719874111911,8.15436801,3442.8,3442.0,3.55]
[1719874112118,0.99704127,3442.7,3442.0,6.45528]
[1719874112315,0.50284935,3442.6,3442.0,6.45528]
[1719874112622,8.15436801,3442.8,3442.0,6.45528]
[1719874112906,0.99705068,3442.7,3442.0,6.45528]
[1719874113075,0.50284949,3442.6,3442.0,6.45528]
[1719874113271,8.15436801,3442.8,3442.0,6.45528]
[1719874113511,0.99704891,3442.7,3442.0,6.45528]
[1719874113697,0.99704891,3442.6,3442.1,2.9052]
[1719874113879,5.24975801,3442.8,3442.1,2.9052]
[1719874114084,0.9971844,3442.7,3442.1,2.9052]
[1719874114285,4.8354,3442.8,3442.1,2.9052]
[1719874114485,0.50284641,3442.6,3442.2,2.90511]
[1719874114710,4.8354,3442.8,3442.2,2.90511]
[1719874114905,0.99713369,3442.7,3442.2,2.90511]
[1719874115110,0.50284739,3442.6,3442.2,2.90511]
[1719874115308,0.50284739,3442.7,3442.2,2.90511]
[1719874115613,0.49501352,3442.6,3442.2,2.90511]
[1719874116110,4.8354,3442.8,3442.2,2.90511]
[1719874116404,0.99779699,3442.7,3442.2,2.90511]
[1719874116586,0.99779699,3442.6,3442.2,2.90511]
[1719874116787,0.50284761,3442.5,3442.2,2.90511]
[1719874116995,0.50284761,3442.5,3442.0,3.55]
[1719874116996,0.50284761,3442.7,3442.0,6.45525]
[1719874117197,3.39974228,3442.6,3442.0,3.0]
[1719874117403,3.39979228,3442.5,3441.7,2.90554]
[1719874117580,0.99776353,3442.4,3441.8,0.55]
[1719874117787,5.62796353,3442.3,3441.8,0.55]
[1719874117989,0.99776353,3442.2,3441.8,0.55]
[1719874118218,0.50287125,3442.1,3441.8,0.55]
[1719874118376,4.6302,3442.3,3441.8,0.55]
[1719874118708,0.99768374,3442.2,3441.8,0.55]
[1719874118913,0.50291306,3442.1,3441.8,0.55]
[1719874119120,4.6302,3442.3,3441.8,0.55]
[1719874119275,0.99766442,3442.2,3441.8,0.55]
[1719874119479,0.49475155,3442.1,3441.8,0.55]
[1719874119694,4.6302,3442.3,3441.8,0.55]
[1719874119893,0.99754254,3442.2,3441.8,0.55]
[1719874120091,0.49462893,3442.1,3441.8,0.55]
[1719874120296,4.6302,3442.3,3441.8,0.55]
[1719874120519,0.49464003,3442.2,3441.8,3.45545]
[1719874120801,0.99754495,3442.2,3441.8,3.45545]
[1719874120991,0.49464003,3442.1,3441.8,3.45545]
[1719874121197,4.6302,3442.3,3441.8,3.45545]
[1719874121533,0.99754644,3442.2,3441.8,3.45545]
[1719874121691,0.49463921,3442.1,3441.8,0.55]
[1719874121895,4.6302,3442.3,3441.7,0.55]
[1719874122096,0.99759817,3442.2,3441.7,3.45548]
[1719874122315,0.4946835,3442.1,3441.7,3.45548]
[1719874122516,4.6302,3442.3,3441.7,3.45548]
[1719874122728,0.99760768,3442.2,3441.7,3.45548]
[1719874123027,0.49467459,3442.1,3441.7,3.45548]
[1719874123229,4.6302,3442.3,3441.7,3.45548]
[1719874123392,0.99758737,3442.2,3441.7,3.45548]
[1719874123725,0.49467296,3442.1,3441.7,3.45548]
[1719874123930,4.6302,3442.3,3441.7,3.45548]
[1719874124129,0.99759648,3442.2,3441.7,3.45548]
[1719874124327,0.49468193,3442.1,3441.7,3.45548]
[1719874124491,4.6302,3442.3,3441.7,3.45548]
[1719874124696,0.99758771,3442.2,3441.7,3.45548]
[1719874124895,0.49467089,3442.1,3441.7,3.45548]
[1719874125211,7.53531,3442.3,3441.7,0.55]
[1719874125407,3.9026624,3442.2,3441.6,0.55]
[1719874125610,0.49461495,3442.1,3441.6,0.55]
[1719874125926,3.39981495,3442.1,3441.5,4.6685]
[1719874126135,2.9052,3442.1,3441.5,4.6685]
[1719874126306,0.49456469,3442.0,3441.2,7.5428]
[1719874126507,0.99751889,3441.9,3441.2,7.5428]
[1719874126834,0.49456469,3441.8,3441.2,8.887698]
[1719874126998,2.90544,3441.9,3441.2,8.887698]
[1719874127198,0.49437268,3441.8,3441.2,8.887698]
[1719874127397,0.49437268,3441.8,3441.2,11.793638]
[1719874127811,2.9053,3442.0,3441.2,11.793638]
[1719874128100,0.49427633,3441.9,3441.3,1.42268159]
[1719874128521,0.49427633,3441.9,3441.3,4.32852159]
[1719874128724,0.49427633,3441.9,3441.4,3.0]
[1719874130230,3.39964633,3441.9,3441.4,3.0]
[1719874130436,0.49424855,3441.8,3441.4,3.0]
[1719874130847,0.49424855,3441.8,3441.3,3.0]
[1719874132121,3.39970855,3441.8,3441.3,3.0]
[1719874132337,2.90546,3441.8,3441.3,3.0]
[1719874132922,2.90546,3441.8,3441.2,8.793658]
[1719874134121,7.51556,3441.8,3441.2,1.344898]
[1719874135851,2.90546,3441.8,3441.2,1.344898]
[1719874136149,2.90546,3441.8,3441.3,1.0250888]
[1719874136313,0.50297254,3441.7,3441.3,1.0250888]
[1719874136522,2.90546,3441.8,3441.3,1.0250888]
[1719874136721,0.50296685,3441.7,3441.3,1.0250888]
[1719874136922,2.90546,3441.8,3441.3,1.0250888]
[1719874137131,0.5029691,3441.7,3441.3,1.0250888]
[1719874137338,2.90546,3441.8,3441.3,1.0250888]
[1719874137539,0.5029691,3441.7,3441.3,1.0250888]
[1719874137736,2.90546,3441.8,3441.3,1.0250888]
[1719874137947,0.50296777,3441.7,3441.3,1.0250888]
[1719874138147,2.90546,3441.8,3441.3,1.0250888]
[1719874138361,0.50297283,3441.7,3441.3,1.0250888]
[1719874138557,2.90546,3441.8,3441.3,1.0250888]
[1719874138765,0.50297061,3441.7,3441.3,1.0250888]
[1719874139068,2.90546,3441.8,3441.3,1.0250888]
[1719874139266,0.50297237,3441.7,3441.2,4.250858]
[1719874139569,2.90546,3441.8,3441.2,4.250858]
[1719874139763,0.50297621,3441.6,3441.2,4.250858]
[1719874139943,2.90546,3441.8,3441.2,4.250858]
[1719874140143,0.50297801,3441.7,3441.2,4.250858]
[1719874140457,0.50297801,3441.6,3441.3,1.0250858]
[1719874140764,2.90546,3441.8,3441.3,1.0250858]
[1719874141073,0.50297505,3441.7,3441.2,4.250858]
[1719874141361,0.50297505,3441.6,3441.2,4.250858]
[1719874141541,2.90546,3441.8,3441.2,4.250858]
[1719874141744,0.502975,3441.7,3441.2,4.250858]
[1719874141939,2.90546,3441.8,3441.2,4.250858]
[1719874142138,0.50297514,3441.7,3441.2,4.250858]
[1719874142342,0.50297514,3441.6,3441.2,4.250858]
[1719874142669,2.90546,3441.8,3441.2,4.250858]
[1719874142968,0.50297476,3441.7,3441.2,4.250858]
[1719874143261,2.90546,3441.8,3441.3,1.0250858]
[1719874143467,0.50297001,3441.7,3441.2,4.250858]
[1719874143663,0.50297001,3441.6,3441.2,4.250858]
[1719874143967,2.90546,3441.8,3441.2,4.250858]
[1719874144272,0.50297343,3441.7,3441.2,4.250858]
[1719874144435,0.50297343,3441.6,3441.2,4.250858]
[1719874144635,2.90546,3441.8,3441.3,1.0250858]
[1719874144837,0.50297592,3441.7,3441.1,3.0]
[1719874145165,3.40859592,3441.6,3441.1,3.0]
[1719874145485,0.50300229,3441.5,3440.9,4.4813]
[1719874145636,0.50300229,3441.4,3441.0,3.0]
[1719874145831,2.90572,3441.5,3441.0,3.0]
[1719874146035,5.29559944,3441.4,3441.0,3.0]
[1719874146272,0.50299944,3441.3,3440.8,3.0]
[1719874146477,0.50299944,3441.3,3440.7,3.0]
[1719874146663,0.50299944,3441.3,3440.8,0.55]
[1719874147258,3.40888944,3441.3,3440.8,0.55]
[1719874147463,0.50299944,3441.2,3440.8,0.55]
[1719874147682,0.50299944,3441.2,3440.3,2.90669]
[1719874147683,2.90615,3441.0,3440.3,5.4725]
[1719874147879,0.50299944,3440.9,3440.4,3.0]
[1719874148039,0.50299944,3440.9,3440.4,4.42245675]
[1719874148239,0.50299944,3440.9,3440.4,4.36433]
[1719874148441,2.90615,3441.0,3440.4,4.36433]
[1719874148770,0.5030671,3440.9,3440.4,4.36433]
[1719874148955,0.5030671,3440.9,3440.4,7.27094]
[1719874149155,2.90605,3441.1,3440.4,7.27094]
[1719874149156,2.90605,3441.1,3440.5,1.491424]
[1719874150199,0.50306664,3441.0,3440.5,1.491424]
[1719874151113,2.90605,3441.1,3440.5,1.491424]
[1719874151728,0.50307082,3441.0,3440.5,1.491424]
[1719874152810,0.50307086,3440.9,3440.5,1.491424]
[1719874153011,2.90605,3441.1,3440.5,1.491424]
[1719874153203,0.50306973,3441.0,3440.5,1.491424]
[1719874153411,0.50306973,3440.9,3440.5,1.491424]
[1719874153607,2.90605,3441.1,3440.5,1.491424]
[1719874153787,0.50306887,3441.0,3440.6,4.2563364]
[1719874153986,0.50306887,3440.9,3440.7,8.19281]
[1719874154197,2.90579,3441.4,3440.7,8.19281]
[1719874154396,3.04256512,3441.3,3440.8,1.24491464]
[1719874154602,0.9959587,3441.2,3440.7,8.19281]
[1719874154801,2.90579,3441.4,3440.7,8.19281]
[1719874155009,3.04254884,3441.3,3440.7,8.19281]
[1719874155317,0.99593999,3441.2,3440.8,2.9063]
[1719874155614,0.50305582,3441.1,3440.8,2.9063]
[1719874155817,0.50305588,3441.0,3440.9,2.96433118]
[1719874156021,7.48,3441.9,3441.2,2.90588]
[1719874156219,3.04299346,3441.8,3441.2,2.90588]
[1719874156530,0.9960897,3441.7,3441.3,0.58701043]
[1719874156691,0.50297358,3441.6,3441.3,3.49288043]
[1719874156888,0.50297358,3441.5,3441.3,3.49288043]
[1719874157090,7.62419,3442.0,3441.3,3.49288043]
[1719874157289,3.04333127,3441.9,3441.4,2.90575]
[1719874157487,0.99634738,3441.8,3441.4,2.90575]
[1719874157699,0.50295956,3441.7,3441.4,2.90575]
[1719874157909,2.90518,3442.2,3441.4,2.90575]
[1719874158104,3.04336392,3442.1,3441.4,2.90575]
[1719874158314,3.04336392,3442.0,3441.4,3.786912]
[1719874158492,0.99628454,3441.9,3441.5,2.9057]
[1719874158699,2.90509,3442.3,3441.5,2.9057]
[1719874158700,0.99628454,3441.8,3441.5,2.9057]
[1719874159008,2.90509,3442.3,3441.5,2.9057]
[1719874159187,3.04408922,3442.2,3441.5,2.9057]
[1719874159387,3.04408922,3442.1,3441.5,2.9057]
[1719874159709,3.04408922,3442.0,3441.5,2.9057]
[1719874159908,0.99693852,3441.9,3441.5,2.9057]
[1719874160107,0.50294003,3441.8,3441.5,3.486857]
[1719874160314,0.50294003,3442.2,3441.5,3.486857]
[1719874160610,2.54098468,3442.1,3441.5,2.9057]